[Event "FIDE Grand Swiss 2023"]
[Site "Villa Marina, Douglas, Isle of Man, Isle Of Man"]
[Date "2023.11.02"]
[Round "8.16"]
[White "Yu, Yangyi"]
[Black "Najer, Evgeniy"]
[Result "1/2-1/2"]
[TimeControl "40/90 + 30 + 30s/move"]
[WhiteFideId "8603820"]
[BlackFideId "4118987"]
[WhiteElo "2720"]
[BlackElo "2648"]

1. e4 {[%clk 01:40:57]} {[%emt 00:00:03]} c5 {[%clk 01:40:55]} {[%emt
00:00:06]} 2. Nf3 {[%clk 01:41:13]} {[%emt 00:00:13]} e6 {[%clk 01:41:21]}
{[%emt 00:00:05]} 3. d3 {[%clk 01:37:49]} {[%emt 00:03:55]} d5 {[%clk
01:39:50]} {[%emt 00:02:00]} 4. Nbd2 {[%clk 01:34:57]} {[%emt 00:03:21]} Nc6
{[%clk 01:40:13]} {[%emt 00:00:07]} 5. g3 {[%clk 01:35:19]} {[%emt 00:00:09]}
Nf6 {[%clk 01:27:37]} {[%emt 00:13:06]} 6. Bg2 {[%clk 01:35:41]} {[%emt
00:00:08]} g6 {[%clk 01:12:19]} {[%emt 00:15:48]} 7. O-O {[%clk 01:35:47]}
{[%emt 00:00:23]} Bg7 {[%clk 01:12:46]} {[%emt 00:00:03]} 8. c3 {[%clk
01:35:06]} {[%emt 00:01:12]} O-O {[%clk 01:09:28]} {[%emt 00:03:48]} 9. e5
{[%clk 01:32:29]} {[%emt 00:03:06]} Nd7 {[%clk 01:07:34]} {[%emt 00:02:24]} 10.
d4 {[%clk 01:32:47]} {[%emt 00:00:13]} f6 {[%clk 00:52:02]} {[%emt 00:16:01]}
11. exf6 {[%clk 01:32:36]} {[%emt 00:00:41]} Bxf6 {[%clk 00:52:21]} {[%emt
00:00:11]} 12. dxc5 {[%clk 01:27:07]} {[%emt 00:05:59]} Nxc5 {[%clk 00:52:46]}
{[%emt 00:00:05]} 13. Nb3 {[%clk 01:27:29]} {[%emt 00:00:08]} Nxb3 {[%clk
00:52:38]} {[%emt 00:00:39]} 14. Qxb3 {[%clk 01:21:29]} {[%emt 00:06:30]} Qb6
{[%clk 00:43:23]} {[%emt 00:09:45]} 15. Bh6 {[%clk 01:16:19]} {[%emt 00:05:39]}
Qxb3 {[%clk 00:36:01]} {[%emt 00:07:52]} 16. axb3 {[%clk 01:16:07]} {[%emt
00:00:42]} Re8 {[%clk 00:35:25]} {[%emt 00:01:06]} 17. Rad1 {[%clk 01:05:37]}
{[%emt 00:10:59]} a5 {[%clk 00:34:24]} {[%emt 00:01:32]} 18. h4 {[%clk
00:57:00]} {[%emt 00:09:07]} Bd7 {[%clk 00:29:50]} {[%emt 00:05:05]} 19. Rfe1
{[%clk 00:50:13]} {[%emt 00:07:17]} a4 {[%clk 00:27:36]} {[%emt 00:02:44]} 20.
bxa4 {[%clk 00:47:41]} {[%emt 00:03:02]} Rxa4 {[%clk 00:27:03]} {[%emt
00:01:03]} 21. Bh3 {[%clk 00:47:48]} {[%emt 00:00:22]} Nd8 {[%clk 00:24:42]}
{[%emt 00:02:51]} 22. Bg5 {[%clk 00:38:57]} {[%emt 00:09:21]} Bxg5 {[%clk
00:21:45]} {[%emt 00:03:27]} 23. Nxg5 {[%clk 00:37:48]} {[%emt 00:01:39]} Kg7
{[%clk 00:20:27]} {[%emt 00:01:48]} 24. b3 {[%clk 00:36:59]} {[%emt 00:01:20]}
Ra3 {[%clk 00:17:11]} {[%emt 00:03:46]} 25. c4 {[%clk 00:37:04]} {[%emt
00:00:25]} Bc6 {[%clk 00:14:52]} {[%emt 00:02:48]} 26. cxd5 {[%clk 00:18:00]}
{[%emt 00:19:35]} exd5 {[%clk 00:15:17]} {[%emt 00:00:05]} 27. Rxe8 {[%clk
00:18:25]} {[%emt 00:00:05]} Bxe8 {[%clk 00:15:44]} {[%emt 00:00:03]} 28. Rxd5
{[%clk 00:18:35]} {[%emt 00:00:19]} Ra1+ {[%clk 00:13:53]} {[%emt 00:02:21]} 29.
Bf1 {[%clk 00:17:30]} {[%emt 00:01:36]} Nf7 {[%clk 00:14:03]} {[%emt 00:00:20]}
30. Nxf7 {[%clk 00:12:15]} {[%emt 00:05:44]} Kxf7 {[%clk 00:12:26]} {[%emt
00:02:07]} 31. f4 {[%clk 00:10:58]} {[%emt 00:01:47]} Rb1 {[%clk 00:11:23]}
{[%emt 00:01:34]} 32. Re5 {[%clk 00:10:19]} {[%emt 00:01:08]} Kf8 {[%clk
00:10:55]} {[%emt 00:00:58]} 33. Kf2 {[%clk 00:10:18]} {[%emt 00:00:32]}
1/2-1/2

[Event "FIDE Grand Swiss 2023"]
[Site "Villa Marina, Douglas, Isle of Man, Isle Of Man"]
[Date "2023.11.02"]
[Round "8.17"]
[White "Abdusattorov, Nodirbek"]
[Black "Saric, Ivan"]
[Result "1/2-1/2"]
[TimeControl "40/90 + 30 + 30s/move"]
[WhiteFideId "14204118"]
[BlackFideId "14508150"]
[WhiteElo "2716"]
[BlackElo "2647"]

1. e4 {[%clk 01:40:44]} {[%emt 00:00:15]} c5 {[%clk 01:40:33]} {[%emt
00:00:28]} 2. Nf3 {[%clk 01:41:04]} {[%emt 00:00:10]} Nc6 {[%clk 01:40:15]}
{[%emt 00:00:48]} 3. Bc4 {[%clk 01:41:00]} {[%emt 00:00:34]} e6 {[%clk
01:37:28]} {[%emt 00:03:18]} 4. O-O {[%clk 01:41:18]} {[%emt 00:00:12]} d5
{[%clk 01:34:10]} {[%emt 00:03:47]} 5. Bb5 {[%clk 01:41:33]} {[%emt 00:00:15]}
Nf6 {[%clk 01:27:39]} {[%emt 00:07:02]} 6. d3 {[%clk 01:22:48]} {[%emt
00:19:15]} Qc7 {[%clk 01:15:04]} {[%emt 00:13:05]} 7. Nc3 {[%clk 01:19:31]}
{[%emt 00:03:46]} a6 {[%clk 01:07:02]} {[%emt 00:08:33]} 8. Bxc6+ {[%clk
01:16:05]} {[%emt 00:03:55]} Qxc6 {[%clk 01:06:00]} {[%emt 00:01:33]} 9. Bf4
{[%clk 01:11:29]} {[%emt 00:05:05]} b5 {[%clk 01:00:26]} {[%emt 00:06:04]} 10.
Re1 {[%clk 01:06:09]} {[%emt 00:05:50]} Be7 {[%clk 00:54:30]} {[%emt 00:06:26]}
11. Ne5 {[%clk 00:59:25]} {[%emt 00:07:15]} Qb7 {[%clk 00:53:38]} {[%emt
00:01:23]} 12. exd5 {[%clk 00:59:46]} {[%emt 00:00:08]} exd5 {[%clk 00:51:48]}
{[%emt 00:02:21]} 13. d4 {[%clk 00:49:47]} {[%emt 00:10:28]} O-O {[%clk
00:47:50]} {[%emt 00:04:28]} 14. Bg5 {[%clk 00:39:57]} {[%emt 00:10:20]} c4
{[%clk 00:39:16]} {[%emt 00:09:05]} 15. Ne2 {[%clk 00:34:01]} {[%emt 00:06:25]}
h6 {[%clk 00:35:11]} {[%emt 00:04:34]} 16. Bh4 {[%clk 00:32:19]} {[%emt
00:02:13]} Re8 {[%clk 00:29:57]} {[%emt 00:05:45]} 17. Ng3 {[%clk 00:24:03]}
{[%emt 00:08:45]} Be6 {[%clk 00:29:16]} {[%emt 00:01:11]} 18. f4 {[%clk
00:23:36]} {[%emt 00:00:57]} Ne4 {[%clk 00:27:38]} {[%emt 00:02:08]} 19. Bxe7
{[%clk 00:20:15]} {[%emt 00:03:51]} Nxg3 {[%clk 00:27:48]} {[%emt 00:00:20]} 20.
hxg3 {[%clk 00:20:36]} {[%emt 00:00:09]} Rxe7 {[%clk 00:26:50]} {[%emt
00:01:28]} 21. Qh5 {[%clk 00:15:48]} {[%emt 00:05:17]} f6 {[%clk 00:25:40]}
{[%emt 00:01:41]} 22. Ng6 {[%clk 00:16:01]} {[%emt 00:00:17]} Ree8 {[%clk
00:26:05]} {[%emt 00:00:05]} 23. Re3 {[%clk 00:15:18]} {[%emt 00:01:13]} Bf7
{[%clk 00:25:38]} {[%emt 00:00:57]} 24. Rae1 {[%clk 00:15:40]} {[%emt
00:00:08]} Re4 {[%clk 00:17:20]} {[%emt 00:08:48]} 25. f5 {[%clk 00:13:30]}
{[%emt 00:02:40]} Rae8 {[%clk 00:17:25]} {[%emt 00:00:24]} 26. Qf3 {[%clk
00:13:20]} {[%emt 00:00:40]} b4 {[%clk 00:10:52]} {[%emt 00:07:04]} 27. Nf4
{[%clk 00:13:23]} {[%emt 00:00:27]} a5 {[%clk 00:10:45]} {[%emt 00:00:38]} 28.
Rxe4 {[%clk 00:10:40]} {[%emt 00:03:12]} dxe4 {[%clk 00:10:10]} {[%emt
00:01:05]} 29. Qe3 {[%clk 00:10:11]} {[%emt 00:00:59]} h5 {[%clk 00:08:59]}
{[%emt 00:01:41]} 30. d5 {[%clk 00:07:33]} {[%emt 00:03:08]} Bxd5 {[%clk
00:06:06]} {[%emt 00:03:23]} 31. Nxh5 {[%clk 00:08:02]} {[%emt 00:00:01]} Bf7
{[%clk 00:06:30]} {[%emt 00:00:06]} 32. Nf4 {[%clk 00:08:20]} {[%emt 00:00:12]}
Qc8 {[%clk 00:05:39]} {[%emt 00:01:21]} 33. g4 {[%clk 00:07:38]} {[%emt
00:01:12]} c3 {[%clk 00:06:02]} {[%emt 00:00:07]} 34. bxc3 {[%clk 00:07:09]}
{[%emt 00:00:59]} Qxc3 {[%clk 00:05:19]} {[%emt 00:01:13]} 35. Qxc3 {[%clk
00:07:03]} {[%emt 00:00:36]} bxc3 {[%clk 00:05:45]} {[%emt 00:00:04]} 36. a3
{[%clk 00:06:38]} {[%emt 00:00:55]} e3 {[%clk 00:05:39]} {[%emt 00:00:36]} 37.
g3 {[%clk 00:05:54]} {[%emt 00:01:14]} a4 {[%clk 00:04:00]} {[%emt 00:02:09]}
38. Kg2 {[%clk 00:04:24]} {[%emt 00:02:00]} Bb3 {[%clk 00:04:11]} {[%emt
00:00:20]} 39. Rc1 {[%clk 00:03:53]} {[%emt 00:01:00]} Bc4 {[%clk 00:03:47]}
{[%emt 00:00:54]} 40. Kf3 {[%clk 00:04:01]} {[%emt 00:00:22]} Ba6 {[%clk
00:00:57]} {[%emt 00:03:20]} 41. Rb1 {[%clk 00:50:19]} {[%emt 00:04:12]} e2
{[%clk 00:49:23]} {[%emt 00:02:05]} 42. Re1 {[%clk 00:49:28]} {[%emt 00:01:19]}
Rd8 {[%clk 00:48:26]} {[%emt 00:01:28]} 43. Nxe2 {[%clk 00:49:21]} {[%emt
00:00:37]} Rd2 {[%clk 00:48:45]} {[%emt 00:00:11]} 44. Nxc3 {[%clk 00:49:05]}
{[%emt 00:00:46]} Rxc2 {[%clk 00:49:00]} {[%emt 00:00:15]} 45. Nxa4 {[%clk
00:27:39]} {[%emt 00:21:56]} Bb7+ {[%clk 00:47:46]} {[%emt 00:01:44]} 46. Ke3
{[%clk 00:26:35]} {[%emt 00:01:34]} Rc4 {[%clk 00:44:09]} {[%emt 00:04:07]} 47.
Nb6 {[%clk 00:23:33]} {[%emt 00:03:32]} Rxg4 {[%clk 00:41:48]} {[%emt
00:02:51]} 48. Rg1 {[%clk 00:21:00]} {[%emt 00:03:03]} Kh7 {[%clk 00:23:29]}
{[%emt 00:18:49]} 49. Kf2 {[%emt 00:05:21]} Be4 {[%clk 00:21:22]} 50. a4 {[%clk
00:18:23]} {[%emt 00:00:52]} Bxf5 {[%clk 00:21:42]} {[%emt 00:00:10]} 51. a5
{[%clk 00:18:39]} {[%emt 00:00:14]} Rb4 {[%clk 00:21:58]} {[%emt 00:00:14]} 52.
Ra1 {[%clk 00:18:49]} {[%emt 00:00:21]} Be4 {[%clk 00:21:08]} {[%emt 00:01:19]}
53. Ra3 {[%clk 00:14:12]} {[%emt 00:05:06]} Bb7 {[%clk 00:18:15]} {[%emt
00:03:24]} 54. Nd7 {[%clk 00:12:39]} {[%emt 00:02:03]} Rb2+ {[%clk 00:18:33]}
{[%emt 00:00:12]} 55. Ke1 {[%clk 00:12:13]} {[%emt 00:00:56]} Rb1+ {[%clk
00:17:37]} {[%emt 00:01:27]} 56. Kd2 {[%clk 00:12:18]} {[%emt 00:00:23]} Rb5
{[%clk 00:17:58]} {[%emt 00:00:10]} 57. Nf8+ {[%clk 00:11:56]} {[%emt
00:00:52]} Kh6 {[%clk 00:15:46]} {[%emt 00:02:43]} 58. Ne6 {[%clk 00:09:35]}
{[%emt 00:02:50]} Rd5+ {[%clk 00:15:46]} {[%emt 00:00:30]} 59. Kc3 {[%clk
00:05:53]} {[%emt 00:04:10]} Re5 {[%clk 00:12:45]} {[%emt 00:03:33]} 60. a6
{[%clk 00:05:02]} {[%emt 00:01:21]} Bxa6 {[%clk 00:11:50]} {[%emt 00:01:25]} 61.
Rxa6 {[%clk 00:05:27]} {[%emt 00:00:05]} Re3+ {[%clk 00:12:17]} {[%emt
00:00:03]} 62. Kd4 {[%clk 00:05:49]} {[%emt 00:00:08]} Rxg3 {[%clk 00:12:43]}
{[%emt 00:00:04]} 63. Ra7 {[%clk 00:05:42]} {[%emt 00:00:37]} Rg1 {[%clk
00:12:38]} {[%emt 00:00:35]} 64. Kc5 {[%clk 00:05:52]} {[%emt 00:00:20]} g5
{[%clk 00:11:59]} {[%emt 00:01:09]} 65. Kd6 {[%clk 00:06:16]} {[%emt 00:00:07]}
Re1 {[%clk 00:09:49]} {[%emt 00:02:39]} 66. Rf7 {[%clk 00:06:14]} {[%emt
00:00:32]} Kg6 {[%clk 00:08:52]} {[%emt 00:01:28]} 67. Ke7 {[%clk 00:06:38]}
{[%emt 00:00:06]} g4 {[%clk 00:08:59]} {[%emt 00:00:22]} 68. Rxf6+ {[%clk
00:06:53]} {[%emt 00:00:15]} Kh5 {[%clk 00:09:27]} {[%emt 00:00:02]} 69. Rf8
{[%clk 00:06:35]} {[%emt 00:00:48]} Kh4 {[%clk 00:05:34]} {[%emt 00:04:23]} 70.
Kd6 {[%clk 00:06:34]} {[%emt 00:00:32]} g3 {[%clk 00:02:56]} {[%emt 00:03:07]}
71. Rg8 {[%clk 00:06:57]} {[%emt 00:00:07]} Kh3 {[%clk 00:12:26]} {[%emt
00:06:00]} 72. Nf4+ {[%clk 00:22:16]} {[%emt 00:00:12]} Kh2 {[%clk 00:12:47]}
{[%emt 00:00:08]} 73. Kd5 {[%clk 00:22:38]} {[%emt 00:00:08]} Re3 {[%clk
00:12:03]} {[%emt 00:01:14]} 74. Kd4 {[%clk 00:22:52]} {[%emt 00:00:17]} Ra3
{[%clk 00:12:15]} {[%emt 00:00:18]} 75. Ke4 {[%clk 00:23:04]} {[%emt 00:00:18]}
Kg1 {[%clk 00:09:32]} {[%emt 00:03:12]} 76. Nd5 {[%clk 00:22:09]} {[%emt
00:01:25]} g2 {[%clk 00:09:00]} {[%emt 00:01:03]} 77. Ne3 {[%clk 00:22:34]}
{[%emt 00:00:04]} Rxe3+ {[%clk 00:08:38]} {[%emt 00:00:51]} 78. Kxe3 {[%clk
00:23:03]} {[%emt 00:00:02]} Kf1 {[%clk 00:09:03]} {[%emt 00:00:05]} 79. Rxg2
{[%clk 00:23:28]} {[%emt 00:00:05]} 1/2-1/2

[Event "FIDE Grand Swiss 2023"]
[Site "Villa Marina, Douglas, Isle of Man, Isle Of Man"]
[Date "2023.11.02"]
[Round "8.18"]
[White "Zhalmakhanov, Ramazan"]
[Black "Shankland, Sam"]
[Result "1/2-1/2"]
[TimeControl "40/90 + 30 + 30s/move"]
[WhiteFideId "13706357"]
[BlackFideId "2004887"]
[WhiteElo "2447"]
[BlackElo "2698"]

1. e4 {[%clk 01:40:55]} {[%emt 00:00:04]} e6 {[%clk 01:40:51]} {[%emt
00:00:10]} 2. d4 {[%clk 01:40:14]} {[%emt 00:01:10]} d5 {[%clk 01:41:17]}
{[%emt 00:00:04]} 3. Nd2 {[%clk 01:38:24]} {[%emt 00:02:20]} c5 {[%clk
01:41:43]} {[%emt 00:00:04]} 4. exd5 {[%clk 01:36:41]} {[%emt 00:02:13]} Qxd5
{[%clk 01:42:08]} {[%emt 00:00:05]} 5. Ngf3 {[%clk 01:36:58]} {[%emt 00:00:12]}
cxd4 {[%clk 01:42:33]} {[%emt 00:00:06]} 6. Bc4 {[%clk 01:37:17]} {[%emt
00:00:11]} Qd8 {[%clk 01:42:45]} {[%emt 00:00:18]} 7. O-O {[%clk 01:37:06]}
{[%emt 00:00:41]} Nc6 {[%clk 01:43:07]} {[%emt 00:00:08]} 8. Nb3 {[%clk
01:37:13]} {[%emt 00:00:22]} a6 {[%clk 01:43:24]} {[%emt 00:00:14]} 9. Nbxd4
{[%clk 01:37:11]} {[%emt 00:00:32]} Nxd4 {[%clk 01:43:47]} {[%emt 00:00:07]} 10.
Nxd4 {[%clk 01:37:30]} {[%emt 00:00:11]} Qc7 {[%clk 01:44:08]} {[%emt
00:00:09]} 11. Bd3 {[%clk 01:32:45]} {[%emt 00:05:15]} Bd6 {[%clk 01:44:13]}
{[%emt 00:00:24]} 12. h3 {[%clk 01:32:21]} {[%emt 00:00:54]} Ne7 {[%clk
01:40:19]} {[%emt 00:04:24]} 13. Qh5 {[%clk 01:24:27]} {[%emt 00:08:25]} Bd7
{[%clk 01:36:29]} {[%emt 00:04:20]} 14. Re1 {[%clk 01:22:53]} {[%emt 00:02:04]}
Qc5 {[%clk 01:34:52]} {[%emt 00:02:06]} 15. Qxc5 {[%clk 01:16:13]} {[%emt
00:07:11]} Bxc5 {[%clk 01:35:18]} {[%emt 00:00:04]} 16. Be3 {[%clk 01:16:34]}
{[%emt 00:00:08]} Bd6 {[%clk 01:34:47]} {[%emt 00:01:01]} 17. Be4 {[%clk
01:14:18]} {[%emt 00:02:47]} O-O-O {[%clk 01:32:53]} {[%emt 00:02:25]} 18. Rad1
{[%clk 01:14:38]} {[%emt 00:00:09]} Bc7 {[%clk 01:27:44]} {[%emt 00:05:38]} 19.
c3 {[%clk 01:12:28]} {[%emt 00:02:40]} Kb8 {[%clk 01:17:41]} {[%emt 00:10:34]}
20. Nb3 {[%clk 01:10:26]} {[%emt 00:02:32]} Bc8 {[%clk 01:11:14]} {[%emt
00:06:57]} 21. Kf1 {[%clk 01:09:12]} {[%emt 00:01:44]} e5 {[%clk 01:07:02]}
{[%emt 00:04:42]} 22. Bd3 {[%clk 01:06:06]} {[%emt 00:03:33]} f6 {[%clk
01:03:43]} {[%emt 00:03:52]} 23. Nc5 {[%clk 01:00:17]} {[%emt 00:06:19]} Nd5
{[%clk 00:52:37]} {[%emt 00:11:36]} 24. Bc1 {[%clk 00:59:49]} {[%emt 00:00:58]}
Bb6 {[%clk 00:52:17]} {[%emt 00:00:50]} 25. Ne4 {[%clk 01:00:04]} {[%emt
00:00:14]} Be6 {[%clk 00:50:31]} {[%emt 00:02:17]} 26. Bc2 {[%clk 00:58:11]}
{[%emt 00:02:23]} Ba7 {[%clk 00:42:04]} {[%emt 00:08:57]} 27. Ng3 {[%clk
00:51:42]} {[%emt 00:07:00]} Rd7 {[%clk 00:39:43]} {[%emt 00:02:51]} 28. Rd2
{[%clk 00:48:13]} {[%emt 00:03:58]} Rhd8 {[%clk 00:38:45]} {[%emt 00:01:28]} 29.
Red1 {[%clk 00:45:40]} {[%emt 00:03:03]} g6 {[%clk 00:37:27]} {[%emt 00:01:48]}
30. Ke1 {[%clk 00:45:01]} {[%emt 00:01:09]} Kc7 {[%clk 00:28:16]} {[%emt
00:09:41]} 31. Re2 {[%clk 00:42:58]} {[%emt 00:02:33]} Bc5 {[%clk 00:27:43]}
{[%emt 00:01:04]} 32. Bb3 {[%clk 00:41:07]} {[%emt 00:02:21]} Kc6 {[%clk
00:25:48]} {[%emt 00:02:25]} 33. Nf1 {[%clk 00:32:01]} {[%emt 00:09:35]} g5
{[%clk 00:15:07]} {[%emt 00:11:11]} 34. Ng3 {[%clk 00:27:52]} {[%emt 00:04:40]}
Nf4 {[%clk 00:14:28]} {[%emt 00:01:08]} 35. Rxd7 {[%clk 00:27:24]} {[%emt
00:00:58]} Bxd7 {[%clk 00:14:53]} {[%emt 00:00:05]} 36. Bxf4 {[%clk 00:27:40]}
{[%emt 00:00:14]} gxf4 {[%clk 00:15:12]} {[%emt 00:00:11]} 37. Nh5 {[%clk
00:26:59]} {[%emt 00:01:11]} Rf8 {[%clk 00:14:49]} {[%emt 00:00:53]} 38. Rd2
{[%clk 00:26:09]} {[%emt 00:01:20]} Kc7 {[%clk 00:03:21]} {[%emt 00:11:58]} 39.
Ng7 {[%emt 00:01:19]} Rd8 {[%clk 00:03:27]} 40. Bd5 {[%clk 00:16:40]} {[%emt
00:09:34]} Bc8 {[%clk 00:02:19]} {[%emt 00:01:37]} 41. b4 {[%clk 00:14:48]}
{[%emt 00:02:23]} Ba7 {[%clk 00:49:56]} {[%emt 00:02:53]} 42. f3 {[%clk
00:42:55]} {[%emt 00:22:23]} Be3 {[%clk 00:46:29]} {[%emt 00:03:56]} 43. Rd1
{[%clk 00:43:01]} {[%emt 00:00:24]} b5 {[%clk 00:43:56]} {[%emt 00:03:04]} 44.
Ke2 {[%clk 00:38:41]} {[%emt 00:04:49]} Bb6 {[%clk 00:43:21]} {[%emt 00:01:05]}
45. Ne6+ {[%clk 00:17:36]} {[%emt 00:21:36]} Bxe6 {[%clk 00:43:46]} {[%emt
00:00:06]} 46. Bxe6 {[%clk 00:18:03]} {[%emt 00:00:02]} Rxd1 {[%clk 00:42:55]}
{[%emt 00:01:21]} 47. Kxd1 {[%clk 00:18:04]} {[%emt 00:00:29]} h5 {[%clk
00:42:52]} {[%emt 00:00:33]} 48. Ke2 {[%clk 00:18:10]} {[%emt 00:00:24]} h4
{[%clk 00:43:17]} {[%emt 00:00:04]} 49. Kd3 {[%clk 00:18:28]} {[%emt 00:00:12]}
Bf2 {[%clk 00:43:14]} {[%emt 00:00:34]} 50. c4 {[%clk 00:18:16]} {[%emt
00:00:43]} bxc4+ {[%clk 00:43:17]} {[%emt 00:00:26]} 51. Kxc4 {[%clk 00:18:34]}
{[%emt 00:00:11]} Kb6 {[%clk 00:43:06]} {[%emt 00:00:42]} 52. a4 {[%clk
00:18:01]} {[%emt 00:01:03]} a5 {[%clk 00:43:22]} {[%emt 00:00:14]} 53. b5
{[%clk 00:17:35]} {[%emt 00:00:56]} Be1 {[%clk 00:43:22]} {[%emt 00:00:30]} 54.
Kd5 {[%clk 00:17:59]} {[%emt 00:00:06]} Bf2 {[%clk 00:43:37]} {[%emt 00:00:15]}
55. Bf5 {[%clk 00:18:16]} {[%emt 00:00:12]} Be1 {[%clk 00:44:01]} {[%emt
00:00:07]} 56. Bc2 {[%clk 00:18:27]} {[%emt 00:00:19]} Bc3 {[%clk 00:43:59]}
{[%emt 00:00:31]} 57. Be4 {[%clk 00:18:46]} {[%emt 00:00:12]} Bd4 {[%clk
00:44:01]} {[%emt 00:00:29]} 58. Kd6 {[%clk 00:18:23]} {[%emt 00:00:51]} Bc3
{[%clk 00:44:22]} {[%emt 00:00:11]} 59. Ke6 {[%clk 00:18:30]} {[%emt 00:00:22]}
Bd4 {[%clk 00:44:38]} {[%emt 00:00:14]} 60. Kxf6 {[%clk 00:18:55]} {[%emt
00:00:06]} Bc3 {[%clk 00:44:55]} {[%emt 00:00:12]} 61. Ke6 {[%clk 00:18:07]}
{[%emt 00:01:17]} Bd4 {[%clk 00:43:56]} {[%emt 00:01:31]} 62. Kd5 {[%clk
00:18:25]} {[%emt 00:00:12]} Bc3 {[%clk 00:39:59]} {[%emt 00:04:27]} 63. Bd3
{[%clk 00:17:43]} {[%emt 00:01:12]} Bb2 {[%clk 00:39:45]} {[%emt 00:00:44]} 64.
Bf1 {[%clk 00:17:57]} {[%emt 00:00:15]} Bc3 {[%clk 00:40:05]} {[%emt 00:00:10]}
65. Ke4 {[%clk 00:17:55]} {[%emt 00:00:33]} Kc5 {[%clk 00:40:02]} {[%emt
00:00:33]} 66. Kf5 {[%clk 00:17:40]} {[%emt 00:00:44]} Bd4 {[%clk 00:40:04]}
{[%emt 00:00:29]} 67. Be2 {[%clk 00:15:02]} {[%emt 00:03:08]} Kb6 {[%clk
00:39:11]} {[%emt 00:01:23]} 68. Ke4 {[%clk 00:14:10]} {[%emt 00:01:21]} Kc5
{[%clk 00:39:08]} {[%emt 00:00:34]} 69. Bd1 {[%clk 00:12:49]} {[%emt 00:01:50]}
Bc3 {[%clk 00:39:03]} {[%emt 00:00:36]} 70. Bb3 {[%clk 00:11:54]} {[%emt
00:01:24]} Bd4 {[%clk 00:39:15]} {[%emt 00:00:19]} 71. Kd3 {[%clk 00:11:14]}
{[%emt 00:01:10]} Ba1 {[%clk 00:39:17]} {[%emt 00:00:28]} 72. Bd1 {[%clk
00:10:41]} {[%emt 00:01:03]} Bd4 {[%clk 00:39:41]} {[%emt 00:00:05]} 73. Ke4
{[%clk 00:10:38]} {[%emt 00:00:34]} Bc3 {[%clk 00:39:50]} {[%emt 00:00:21]} 74.
Kf5 {[%clk 00:11:01]} {[%emt 00:00:06]} Bd4 {[%clk 00:40:04]} {[%emt 00:00:17]}
75. Kg5 {[%clk 00:11:23]} {[%emt 00:00:07]} Bf2 {[%clk 00:40:29]} {[%emt
00:00:05]} 76. Bc2 {[%clk 00:11:42]} {[%emt 00:00:11]} Be1 {[%clk 00:40:21]}
{[%emt 00:00:39]} 77. Be4 {[%clk 00:11:46]} {[%emt 00:00:25]} Bf2 {[%clk
00:40:34]} {[%emt 00:00:17]} 78. Bc6 {[%clk 00:11:59]} {[%emt 00:00:17]} Be1
{[%clk 00:40:39]} {[%emt 00:00:26]} 79. Kf5 {[%clk 00:11:39]} {[%emt 00:00:49]}
Bc3 {[%clk 00:41:05]} {[%emt 00:00:04]} 80. Ke4 {[%clk 00:11:47]} {[%emt
00:00:22]} Bd4 {[%clk 00:41:25]} {[%emt 00:00:11]} 1/2-1/2